fUSD/lending_fUSD_20240511
["ID","MTS","AMOUNT","RATE_DAILY","PERIOD"]
[326826023,1715458232018,-566.33962102,0.00011988,2]
[326826024,1715458232129,-5912.5850199,0.00011988,2]
[326826025,1715458232138,-154.96039253,0.00012074,2]
[326826026,1715458232147,-152.18357612,0.00012076,2]
[326826027,1715458232156,-183.15780889,0.00012118,2]
[326826028,1715458232166,-153.26974229,0.00012131,2]
[326826029,1715458232175,-183.15780889,0.00012196,2]
[326826030,1715458232184,-152.18357612,0.00012202,2]
[326826031,1715458232193,-152.18357612,0.00012325,2]
[326826032,1715458232204,-150.0,0.00012325,2]
[326826033,1715458232217,-154.4746671,0.00012326,2]
[326826034,1715458232226,-999.99,0.00012326,2]
[326826035,1715458232235,-152.18357612,0.00012353,2]
[326826036,1715458232244,-154.4746671,0.00012436,2]
[326826037,1715458232253,-154.03738993,0.00012571,2]
[326826038,1715458232263,-154.96039253,0.00012608,2]
[326826039,1715458232272,-150.49826618,0.00012648,2]
[326826040,1715458232281,-1561.86172371,0.00012661,2]
[326826041,1715458232290,-154.4746671,0.00012692,2]
[326826042,1715458232300,-183.15780889,0.00012701,2]
[326826043,1715458232309,-5796.3,0.00012779,2]
[326826044,1715458232317,-7645.2924,0.0001278,2]
[326826045,1715458232326,-39219.3804,0.0001278,2]
[326826046,1715458232335,-154.4746671,0.0001279,2]
[326826047,1715458232344,-1638.51026,0.0001287,2]
[326826048,1715458232353,-150.0,0.00012874,2]
[326826049,1715458232362,-200.0,0.00012896,2]
[326826051,1715458232371,-1000.0,0.00012896,2]
[326826053,1715458232380,-500.0,0.00012896,2]
[326826055,1715458232389,-200.5,0.000129,2]
[326826057,1715458232398,-3975.59436986,0.000129,2]
[326826059,1715458232407,-157.28867493,0.000129,2]
[326826061,1715458232416,-492.81976372,0.000129,2]
[326826063,1715458232425,-2305.34715327,0.000129,2]
[326826065,1715458232434,-284.343156,0.000129,2]
[326826067,1715458232443,-150.0,0.00012988,2]
[326826070,1715458232452,-1251.3208889,0.00012991,2]
[326826071,1715458232461,-1030.4995556,0.00012991,2]
[326826073,1715458232470,-809.6782222,0.00012991,2]
[326826075,1715458232479,-588.8568889,0.00012991,2]
[326826077,1715458232488,-368.0355555,0.00012991,2]
[326826079,1715458232497,-299.08255295,0.00012994,2]
[326826081,1715458232507,-1472.1422223,0.00012994,2]
[326826083,1715458232516,-521.4734453,0.00012998,2]
[326826085,1715458232525,-167.20631521,0.00012998,2]
[326826087,1715458232535,-1701.39738647,0.00012998,2]
[326826089,1715458232544,-204.34387367,0.00012998,2]
[326826091,1715458232554,-1242.23151248,0.00012998,2]
[326826093,1715458232563,-1023.02542694,0.00012998,2]
[326826095,1715458232573,-320.95413161,0.00012998,2]
[326826097,1715458232582,-707.88995907,0.00012998,2]
[326826099,1715458232592,-3057.79124914,0.00012998,2]
[326826101,1715458232601,-155.0,0.00012998,2]
[326826103,1715458232610,-155.26323273,0.00012998,2]
[326826105,1715458232619,-150.0,0.00012998,2]
[326826107,1715458232628,-188.61515013,0.00012999,2]
[326826109,1715458232637,-327393.39569064,0.00013,2]
[326826111,1715458232646,-38758.2548941,0.00013,2]
[326826113,1715458232657,-5985.8999,0.00013,2]
[326826114,1715458232668,-5560.26,0.00013,2]
[326826115,1715458232679,-66031.80432224,0.00013,2]
[326826116,1715458232690,-346.53616094,0.00013,2]
[326826117,1715458232706,-612.4207077,0.00013,2]
[326826118,1715458232933,-1421.18809713,0.00013,2]
[326826119,1715458232952,-260.79473481,0.00013,2]
[326826120,1715458232963,-306.20467746,0.00013,2]
[326826121,1715458232992,-2750.0,0.00013,2]
[326826122,1715458233004,-437.7908,0.00013,2]
[326826127,1715458238263,-150.01,0.00012999,2]
[326826128,1715458238272,-2368.19009851,0.00013,2]
[326826131,1715458238926,-388.33639583,0.00013,2]
[326826132,1715458238938,-306.73725,0.00013,2]
[326826133,1715458239378,-56664.86527035,0.00013,2]
[326826134,1715458239389,-5572.08013985,0.00013,2]
[326826135,1715458239408,-671.65301558,0.00013,2]
[326826141,1715458240112,-366.77999995,0.00013,2]
[326826142,1715458240325,-380.24200001,0.00013,2]
[326826158,1715458243295,-914359.16692947,0.00013,2]
[326826187,1715458246447,-2e-08,0.00012999,2]
[326826188,1715458246626,-150.00999998,0.00012999,2]
[326826189,1715458246636,-612.13675402,0.00013,2]
[326826206,1715459432447,-155.0,0.00011697,2]
[326826208,1715459432457,-355.46848115,0.00011698,2]
[326826209,1715459432467,-51.96696423,0.00011713,2]
[326826210,1715459432478,-1266.7972655,0.00011713,2]
[326826211,1715459432506,-3694.22072771,0.00011713,2]
[326826212,1715459432517,-3200.71504256,0.00011713,2]
[326826213,1715459432527,-250.0,0.00011743,2]
[326826214,1715459432536,-1000.0,0.00011752,2]
[326826215,1715459432546,-150.0,0.00011772,2]
[326826216,1715459432556,-150.0,0.00011772,2]
[326826217,1715459432567,-153.23,0.00011773,2]
[326826218,1715459432577,-153.26974229,0.00012015,2]
[326826219,1715459432586,-80.31750029,0.00012105,2]
[326826220,1715459432601,-69.68249971,0.00012105,2]
[326826221,1715459432611,-605.26122974,0.00012349,2]
[326826222,1715459432622,-349.58674288,0.00012349,2]
[326826223,1715459432631,-451.7788048,0.00012349,2]
[326826224,1715459432643,-28.5011952,0.00012349,2]
[326826225,1715459432653,-152.18357613,0.00012402,2]
[326826226,1715459432662,-209.004247,0.00012419,2]
[326826227,1715459432672,-485.91026142,0.00012419,2]
[326826228,1715459432707,-930.77708858,0.00012419,2]
[326826229,1715459432717,-2212.1038349,0.00012419,2]
[326826230,1715459432728,-1220.219,0.00012419,2]
[326826231,1715459432740,-1395.94038768,0.00012419,2]
[326826232,1715459432792,-976.88181659,0.00012419,2]
[326826241,1715459438512,-1346.4643134,0.00012419,2]
[326826242,1715459438698,-457.51021413,0.00012419,2]
[326826251,1715459440414,-1050.16457549,0.00012419,2]
[326826252,1715459440426,-1167.86500003,0.00012419,2]
[326826253,1715459440478,-323.405,0.00012419,2]
[326826254,1715459440498,-737.7791199,0.00012419,2]
[326826255,1715459442580,-1575.94465588,0.00012419,2]
[326826256,1715459442594,-153.26974229,0.00012459,2]
[326826257,1715459442605,-161.44916763,0.00012465,2]
[326826258,1715459442615,-153.26974229,0.00012474,2]
[326826259,1715459442625,-1416.68735,0.00012574,2]
[326826260,1715459442635,-12464.277918,0.00012574,2]
[326826261,1715459442645,-1133.5194678,0.000127,2]
[326826262,1715459442685,-266.51398,0.000127,2]
[326826263,1715459442697,-696.92,0.000127,2]
[326826266,1715459443549,-80903.0465522,0.000127,2]
[326826267,1715459443560,-1416.68735,0.00012729,2]
[326826268,1715459443569,-12464.277918,0.00012729,2]
[326826269,1715459443579,-260.31380509,0.00012798,2]
[326826270,1715459443592,-11736.71382355,0.00012869,2]
[326826271,1715459443601,-1416.68735,0.00012884,2]
[326826272,1715459443610,-12464.277918,0.00012884,2]
[326826273,1715459443619,-1000.0,0.00012896,2]
[326826274,1715459443628,-154.4746671,0.00012896,2]
[326826275,1715459443637,-157.28867493,0.000129,2]
[326826276,1715459443647,-3644.29483913,0.000129,2]
[326826277,1715459443656,-459.96511274,0.000129,2]
[326826278,1715459443669,-210.0,0.0001295,2]
[326826279,1715459443691,-210.0,0.0001295,2]
[326826280,1715459443714,-1727.25423775,0.00012999,2]
[326826281,1715459443736,-5555.9306126,0.00012999,2]
[326826282,1715459443759,-265.82545038,0.00012999,2]
[326826283,1715459443783,-511.0,0.00013,2]
[326826284,1715459443804,-294654.05612158,0.00013,2]
[326826285,1715459443826,-485147.07249642,0.00013,2]
[326826287,1715459443878,-254.51470176,0.00013,2]
[326826289,1715459446971,-479.64218886,0.00012998,7]
[326826290,1715459446981,-329.48874457,0.00012998,2]
[326826291,1715459446991,-2854.9911193,0.00013,2]
[326826292,1715459447099,-356.99637816,0.00013,2]
[326826293,1715459453224,2688.66763685,9.75e-05,2]
[326826295,1715459921843,173.94,9.37e-05,2]
[326826296,1715460020538,150.0,0.00011171,2]
[326826297,1715460020561,150.0,0.00011171,2]
[326826298,1715460020584,150.0,0.00011171,2]
[326826299,1715460020605,150.0,0.00011171,2]
[326826300,1715460020627,150.0,0.00011171,2]
[326826301,1715460020649,150.0,0.00011171,2]
[326826302,1715460020670,235.42200731,0.00011171,2]
[326826303,1715460022862,-260.70437348,0.00011171,2]
[326826304,1715460024346,-150.0,0.00011171,2]
[326826305,1715460024807,-150.0,0.00011171,2]
[326826306,1715460026598,-150.0,0.00011171,2]
[326826307,1715460027295,-150.0,0.00011171,2]
[326826308,1715460027704,-150.0,0.00011171,2]
[326826309,1715460028127,-150.0,0.00011171,2]
[326826310,1715460028914,155.0,0.0001117,2]
[326826311,1715460031265,224.39530589,7.496e-05,2]
[326826312,1715460042567,912.74656962,9.37e-05,2]
[326826313,1715460043511,260.70437348,9.37e-05,2]
[326826314,1715460077931,200.0,0.00011114,2]
[326826317,1715460358787,1543.45175999,0.00011078,2]
[326826318,1715460363191,1543.45175999,0.00011107,2]
[326826319,1715460368204,1543.45175999,0.00011136,2]
[326826320,1715460399777,173.94,8.973e-05,2]
[326826321,1715460491668,-177.44885904,0.0002509,120]
[326826322,1715460491698,-275.39701084,0.0002736,120]
[326826323,1715460491738,-310.48878118,0.00029,120]
[326826324,1715460491774,-5487.39,0.0003,120]
[326826325,1715460491798,-1022.0,0.0003,120]
[326826326,1715460518449,-1075.0,0.00022,30]
[326826327,1715460518479,-151.0,0.00023577,30]
[326826328,1715460518528,-593.84838742,0.0002863,30]
[326826329,1715460518551,-593.84838742,0.0002874,30]
[326826330,1715460518576,-593.84838742,0.00028877,30]
[326826331,1715460518599,-593.84838742,0.00028986,30]
[326826332,1715460518622,-899.99999903,0.00029,30]
[326826333,1715460518644,-593.84838742,0.00029123,30]
[326826334,1715460518666,-593.84838742,0.00029233,30]
[326826335,1715460518689,-593.84838742,0.00029342,30]
[326826336,1715460518962,-593.84838742,0.00029479,30]
[326826337,1715460518985,-1208.0,0.00029505,30]
[326826338,1715460519008,-593.84838742,0.00029589,30]
[326826339,1715460519036,-593.84838742,0.00029726,30]
[326826340,1715460519061,-593.84838742,0.00029836,30]
[326826341,1715460519085,-155.25283367,0.0002988,30]
[326826342,1715460519110,-5350.0,0.000299,30]
[326826343,1715460519134,-593.84838742,0.00029973,30]
[326826344,1715460519159,-1786.65861026,0.0003,30]
[326826345,1715460519182,-613.01372641,0.0003,30]
[326826346,1715460519207,-593.84838742,0.00030082,30]
[326826347,1715460519231,-593.84838742,0.00030192,30]
[326826348,1715460519259,-593.84838742,0.00030329,30]
[326826349,1715460534962,-1248.1231469,0.0003,30]
[326826350,1715460556119,-155.0,0.00011177,2]
[326826351,1715460556139,-601.0,0.00011178,2]
[326826352,1715460556158,-500.0,0.00011236,2]
[326826353,1715460556177,-250.0,0.00011293,2]
[326826354,1715460556197,-250.0,0.00011324,2]
[326826355,1715460556216,-150.0,0.00011366,2]
[326826356,1715460556237,-9875.9081355,0.00011367,2]
[326826357,1715460556534,-373.95648138,0.000329,30]
[326826358,1715460556557,-3966.36560176,0.000329,30]
[326826359,1715460556581,-157.73331913,0.00033,120]
[326826360,1715460556607,-300.0,0.00033828,120]
[326826361,1715460556630,-250.0,0.00034,120]
[326826362,1715460556653,-1000.0,0.000342,120]
[326826363,1715460556675,-300.0,0.00034491,120]
[326826364,1715460556700,-250.0,0.00035,120]
[326826365,1715460556723,-4434.78143296,0.00035,30]
[326826366,1715460571117,-7764.2418645,0.00011367,2]
[326826367,1715460571138,-165.91,0.00011367,2]
[326826368,1715460571159,-1000.0,0.00011373,2]
[326826369,1715460571180,-4677.76,0.00011396,2]
[326826370,1715460571201,-499.99,0.00011396,2]
[326826371,1715460571223,-152.78,0.0001141,2]
[326826372,1715460571245,-2684.26,0.00011433,2]
[326826373,1715460571268,-133.31472,0.0001147,2]
[326826375,1715460631638,-485.422,0.00011267,2]
[326826376,1715460631648,-19.46528,0.0001147,2]
[326826377,1715460631657,-150.0,0.0001147,2]
[326826378,1715460631666,-94.67272,0.0001147,2]
[326826379,1715460631732,-55.32728,0.0001147,2]
[326826380,1715460631741,-250.0,0.00011519,2]
[326826381,1715460631751,-152.78,0.00011529,2]
[326826382,1715460631761,-152.78,0.00011589,2]
[326826383,1715460631771,-5558.18747015,0.00011596,2]
[326826384,1715460631780,-1980.52,0.00011596,2]
[326826385,1715460631789,-152.78,0.00011648,2]
[326826386,1715460631798,-750.52330383,0.00011698,2]
[326826387,1715460631807,-152.78,0.00011708,2]
[326826388,1715460631816,-5549.44,0.00011713,2]
[326826389,1715460631825,-152.78,0.00011767,2]
[326826390,1715460631834,-152.78,0.00011826,2]
[326826391,1715460631842,-155.0,0.00011885,2]
[326826392,1715460631851,-152.78,0.00011886,2]
[326826393,1715460631861,-152.78,0.00011945,2]
[326826394,1715460631870,-152.78,0.00012005,2]
[326826395,1715460631879,-155.51787488,0.00012106,2]
[326826396,1715460631888,-364.02455957,0.0001213,2]
[326826397,1715460631897,-200.0,0.000122,4]
[326826398,1715460631906,-199.12205558,0.00012264,2]
[326826399,1715460631916,-185.88,0.00012279,2]
[326826400,1715460631926,-500.0,0.000123,4]
[326826401,1715460631936,-954.84797262,0.00012348,2]
[326826402,1715460631945,-800.0,0.000124,4]
[326826403,1715460631955,-113.62487252,0.00012419,2]
[326826404,1715460631967,-4872.08629448,0.00012419,2]
[326826405,1715460631976,-566.67494,0.00012419,2]
[326826406,1715460631984,-260.31380509,0.00012431,2]
[326826407,1715460631993,-199.12205558,0.00012451,2]
[326826408,1715460632002,-1100.0,0.000125,4]
[326826409,1715460632011,-210.0,0.00012503,2]
[326826410,1715460632020,-2203.19674956,0.00012574,2]
[326826411,1715460632032,-2782.51441744,0.00012574,2]
[326826412,1715460632040,-566.67494,0.00012574,2]
[326826413,1715460632050,-1300.0,0.000126,4]
[326826414,1715460632059,-154.03738992,0.00012616,2]
[326826415,1715460632068,-157.980394,0.00012693,2]
[326826416,1715460632077,-157.980394,0.00012695,2]
[326826417,1715460632085,-150.0,0.000127,2]
[326826418,1715460632094,-200.0,0.000127,4]
[326826419,1715460632103,-199.12205558,0.00012723,2]
[326826420,1715460632112,-3063.48782688,0.00012729,2]
[326826421,1715460632123,-496.346633,0.00012729,2]
[326826422,1715460632134,-730.35536255,0.00012729,2]
[326826423,1715460632145,-695.52134457,0.00012729,2]
[326826424,1715460632154,-566.67494,0.00012729,2]
[326826425,1715460632163,-153.54235829,0.00012741,2]
[326826426,1715460632172,-153.54235829,0.00012762,2]
[326826427,1715460632180,-6265.7317,0.0001278,2]
[326826428,1715460632189,-150.83521164,0.00012786,2]
[326826429,1715460632198,-1000.0,0.00012795,2]
[326826430,1715460632207,-200.0,0.000128,4]
[326826431,1715460632216,-11736.71382355,0.00012868,2]
[326826432,1715460632225,-409.06,0.00012877,2]
[326826433,1715460632234,-265.89148613,0.00012878,2]
[326826434,1715460632243,-121419.47054269,0.0001288,2]
[326826435,1715460632252,-4985.711167,0.00012884,2]
[326826436,1715460632262,-566.67494,0.00012884,2]
[326826437,1715460632271,-200.0,0.00012896,2]
[326826438,1715460632280,-1000.0,0.00012896,2]
[326826439,1715460632289,-5903.0674504,0.000129,2]
[326826440,1715460632316,-786.70850841,0.000129,2]
[326826441,1715460632347,-32516.34911547,0.000129,2]
[326826442,1715460632370,-387.99999996,0.000129,2]
[326826443,1715460632382,-1536.45624291,0.000129,2]
[326826444,1715460632404,-6947.77168517,0.000129,2]
[326826457,1715460637894,-28633.03765267,0.000129,2]
[326826458,1715460637905,-1629.68005117,0.000129,2]
[326826459,1715460637943,-435.89018037,0.000129,2]
[326826461,1715460637954,-2199.76057497,0.000129,2]
[326826463,1715460637965,-1240.93537876,0.000129,2]
[326826464,1715460639957,-331.63639484,0.000129,2]
[326826465,1715460640677,-459.96511274,0.000128,2]
[326826466,1715460640686,-62.17836726,0.000129,2]
[326826467,1715460640706,-49964.43749764,0.000129,2]
[326826468,1715460640716,-334308.271736,0.000129,2]
[326826469,1715460640725,-157.28867493,0.000129,2]
[326826470,1715460640735,-3644.43733913,0.000129,2]
[326826471,1715460640744,-200.0,0.000129,4]
[326826472,1715460640754,-1613097.0,0.000129,2]
[326826473,1715460640764,-568.68631198,0.000129,2]
[326826474,1715460640774,-199.12205558,0.00012902,2]
[326826475,1715460640784,-153.54235829,0.00012946,2]
[326826476,1715460640793,-999.0,0.00012985,2]
[326826477,1715460640803,-405.21355048,0.00012998,2]
[326826478,1715460640813,-194.34268049,0.00012998,2]
[326826479,1715460640823,-162.08193255,0.00012998,2]
[326826480,1715460640832,-155.76589553,0.00012998,2]
[326826481,1715460640841,-534.79759922,0.00012998,2]
[326826482,1715460640850,-569.00557054,0.00012998,2]
[326826483,1715460640859,-1727.25423775,0.00012998,2]
[326826484,1715460640869,-155.0,0.00012999,2]
[326826485,1715460640878,-156.71208223,0.00012999,2]
[326826486,1715460640887,-363.81807592,0.00012999,2]
[326826487,1715460640896,-155.45749735,0.00012999,2]
[326826488,1715460640905,-1052.05964256,0.00012999,2]
[326826489,1715460640914,-1227.24709092,0.00012999,3]
[326826490,1715460640923,-265.82545038,0.00012999,2]
[326826491,1715460640933,-559.0,0.00013,2]
[326826492,1715460640943,-2954335.95719802,0.00013,2]
[326826493,1715460640952,-115950.90174742,0.00013,2]
[326826494,1715460640962,-246.0,0.00013,2]
[326826495,1715460640971,-246.0,0.00013,2]
[326826496,1715460640980,-246.0,0.00013,2]
[326826497,1715460640989,-246.0,0.00013,2]
[326826498,1715460640998,-246.0,0.00013,2]
[326826499,1715460641007,-246.0,0.00013,2]
[326826500,1715460641016,-246.0,0.00013,2]
[326826501,1715460641026,-246.0,0.00013,2]
[326826502,1715460641035,-246.0,0.00013,2]
[326826503,1715460641044,-246.0,0.00013,2]
[326826504,1715460641053,-246.0,0.00013,2]
[326826505,1715460641063,-246.0,0.00013,2]
[326826506,1715460641072,-246.0,0.00013,2]
[326826507,1715460641081,-246.0,0.00013,2]
[326826508,1715460641090,-246.0,0.00013,2]
[326826509,1715460641099,-220.0,0.00013,2]
[326826510,1715460641109,-220.0,0.00013,2]
[326826511,1715460641119,-1089438.68513665,0.00013,2]
[326826512,1715460641127,-932415.73611238,0.00013,2]
[326826513,1715460641136,-414.3152672,0.00013,2]
[326826514,1715460641146,-398.0,0.00013,2]
[326826515,1715460641155,-398.0,0.00013,2]
[326826516,1715460641164,-398.0,0.00013,2]
[326826517,1715460641174,-398.0,0.00013,2]
[326826518,1715460641183,-398.0,0.00013,2]
[326826519,1715460641192,-398.0,0.00013,2]
[326826520,1715460641201,-398.0,0.00013,2]
[326826521,1715460641210,-398.0,0.00013,2]
[326826522,1715460641219,-398.0,0.00013,2]
[326826523,1715460641228,-398.0,0.00013,2]
[326826524,1715460641237,-398.0,0.00013,2]
[326826525,1715460641246,-398.0,0.00013,2]
[326826526,1715460641255,-398.0,0.00013,2]
[326826527,1715460641265,-398.0,0.00013,2]
[326826528,1715460641274,-398.0,0.00013,2]
[326826529,1715460641284,-188.77835514,0.00013,2]
[326826530,1715460641293,-2173461.20007146,0.00013,2]
[326826531,1715460641699,-640.01,0.00013,2]
[326826544,1715460642860,-481988.77767011,0.00013,2]
[326826545,1715460642870,-351467.34270716,0.00013,2]
[326826546,1715460642968,-13156.42869746,0.00013,2]
[326826548,1715460645699,-47014.55484993,0.00013,2]
[326826549,1715460645717,-28114.39528322,0.00013,2]
[326826550,1715460645740,-169420.7875665,0.00013,2]
[326826551,1715460645758,-27133.58466313,0.00013,2]
[326826552,1715460646415,-169863.04446604,0.00013,2]
[326826553,1715460646428,-288.93006035,0.00013,2]
[326826554,1715460646442,-67590.0,0.00013,2]
[326826555,1715460646455,-425079.26141384,0.00013,2]
[326826556,1715460656922,600.0,9.675e-05,2]
[326826557,1715460657436,-157.24376715,0.00030598,120]
[326826558,1715460657462,-157.85756768,0.00030598,120]
[326826559,1715460657486,-5000.0,0.00030598,120]
[326826560,1715460657511,-9552.49963605,0.00030598,120]
[326826561,1715460657534,-387.15767216,0.00030598,120]
[326826562,1715460657558,-13363.88,0.00030598,120]
[326826563,1715460657580,-154.6515685,0.00030598,120]
[326826564,1715460657603,-726.37526478,0.00030598,120]
[326826565,1715460657627,-196.77602616,0.00030598,120]
[326826566,1715460657650,-413.0,0.00030598,120]
[326826567,1715460657673,-1336.49252483,0.00030598,120]
[326826568,1715460657695,-57386.19738518,0.00030598,120]
[326826569,1715460657718,-5757.42109452,0.00030598,120]
[326826570,1715460657741,-6490.97169248,0.00030598,120]
[326826571,1715460657763,-24938.19657664,0.00030598,120]
[326826572,1715460669642,-970.0,0.00030598,30]
[326826573,1715460669665,-686.0,0.00030598,30]
[326826574,1715460669688,-1000.0,0.00030598,30]
[326826575,1715460669711,-1000.0,0.00030598,30]
[326826576,1715460669734,-1000.0,0.00030598,30]
[326826577,1715460669757,-1000.0,0.00030598,30]
[326826578,1715460669780,-1000.0,0.00030598,30]
[326826579,1715460669803,-1000.0,0.00030598,30]
[326826580,1715460669831,-1000.0,0.00030598,30]
[326826581,1715460669854,-1000.0,0.00030598,30]
[326826582,1715460669879,-1000.0,0.00030598,30]
[326826583,1715460669907,-1000.0,0.00030598,30]
[326826584,1715460669930,-1000.0,0.00030598,30]
[326826585,1715460669953,-1000.0,0.00030598,30]
[326826586,1715460669977,-1000.0,0.00030598,30]
[326826587,1715460670000,-1000.0,0.00030598,30]
[326826588,1715460670024,-1000.0,0.00030598,30]
[326826589,1715460670048,-1000.0,0.00030598,30]
[326826590,1715460670073,-1000.0,0.00030598,30]
[326826591,1715460670096,-1000.0,0.00030598,30]
[326826592,1715460670118,-1000.0,0.00030598,30]
[326826593,1715460670141,-1000.0,0.00030598,30]
[326826594,1715460670164,-1000.0,0.00030598,30]
[326826595,1715460670186,-1000.0,0.00030598,30]
[326826596,1715460670209,-1000.0,0.00030598,30]
[326826597,1715460670232,-1000.0,0.00030598,30]
[326826598,1715460670259,-1000.0,0.00030598,30]
[326826599,1715460670283,-1000.0,0.00030598,30]
[326826600,1715460670306,-1000.0,0.00030598,30]
[326826601,1715460670328,-1000.0,0.00030598,30]
[326826602,1715460670351,-1000.0,0.00030598,30]
[326826603,1715460670374,-213.5157333,0.00030598,30]
[326826604,1715460670402,-240.2364269,0.00030598,90]
[326826605,1715460670425,-340.46372328,0.00030598,60]
[326826606,1715460670450,-351.03197196,0.00030598,60]
[326826607,1715460670478,-1000.0,0.00030598,30]
[326826608,1715460670502,-5857.28532935,0.00030598,30]
[326826609,1715460670525,-853.0504,0.00030598,30]
[326826610,1715460670550,-5000.0,0.00030598,90]
[326826611,1715460670574,-3000.0,0.00030598,80]
[326826612,1715460670598,-2763.11282839,0.00030598,30]
[326826613,1715460670622,-1741.12030509,0.00030598,30]
[326826614,1715460670646,-8379.20083312,0.00030598,30]
[326826615,1715460670670,-2086.19526108,0.00030598,30]
[326826616,1715460670693,-2250.72488863,0.00030598,30]
[326826617,1715460670717,-160.39896063,0.00030598,30]
[326826618,1715460670741,-2029.30715746,0.00030598,30]
[326826619,1715460670765,-160.0,0.00030598,30]
[326826620,1715460670788,-4851.0,0.00030598,30]
[326826621,1715460670811,-4000.0,0.00030598,60]
[326826622,1715460670834,-30000.0,0.00030598,60]
[326826623,1715460670857,-500.0,0.00030598,30]
[326826624,1715460670880,-500.0,0.00030598,31]
[326826625,1715460670904,-517.45531798,0.00030598,32]
[326826626,1715460670929,-3510.12464319,0.00030598,30]
[326826627,1715460670952,-3433.0,0.00030598,30]
[326826628,1715460670975,-417606.77621964,0.00030598,30]
[326826638,1715461745136,-155.0,0.00011331,2]
[326826639,1715461745157,-1500.0,0.00011332,2]
[326826640,1715461745180,-250.0,0.00011359,2]
[326826641,1715461745203,-150.0,0.00011366,2]
[326826642,1715461745225,-150.0,0.00011366,2]
[326826643,1715461745248,-4064.72,0.00011367,2]
[326826644,1715461745272,-2123.58,0.00011367,2]
[326826645,1715461745296,-5558.18747015,0.00011372,2]
[326826646,1715461745318,-250.0,0.00011373,2]
[326826647,1715461745339,-225.68,0.00011389,2]
[326826648,1715461745362,-200.0,0.00011399,2]
[326826649,1715461745383,-614.77,0.00011471,2]
[326826650,1715461745404,-1852.42,0.00011471,2]
[326826651,1715461745426,-23880.0,0.00011521,2]
[326826652,1715461745447,-832.06593303,0.00011621,2]
[326826653,1715461745467,-31935.51322435,0.00011621,2]
[326826654,1715461751945,-534.17459245,0.00011331,2]
[326826655,1715461751983,-1984.02550606,0.00011621,2]
[326826663,1715461831927,-400.0,0.0001133,2]
[326826664,1715461831939,-471.05859943,0.0001133,2]
[326826665,1715461831948,-417.30902204,0.00011621,2]
[326826666,1715461831959,-335.55356,0.00011621,2]
[326826667,1715461831971,-4092.20868755,0.00011621,2]
[326826668,1715461831981,-185.88,0.00011623,2]
[326826669,1715461831990,-999.99,0.00011623,2]
[326826670,1715461831999,-1000.0,0.00011661,2]
[326826671,1715461832008,-1163.28,0.00011931,2]
[326826672,1715461832017,-150.99,0.00011931,2]
[326826673,1715461832026,-282.77,0.00011932,2]
[326826674,1715461832035,-150.0,0.00011958,2]
[326826675,1715461832044,-165.91,0.00011959,2]
[326826676,1715461832053,-155.0,0.00012198,2]
[326826677,1715461832062,-7508.55,0.00012199,2]
[326826678,1715461832071,-499.99,0.000122,2]
[326826679,1715461832080,-9999.99,0.000122,2]
[326826680,1715461832090,-499.99,0.000122,2]
[326826681,1715461832099,-868.62,0.000122,2]
[326826682,1715461832108,-1780.93,0.000122,2]
[326826683,1715461832116,-174.76,0.00012241,2]
[326826684,1715461832125,-9999.99,0.00012261,2]
[326826685,1715461832134,-868.62,0.000123,2]
[326826686,1715461832144,-828.7,0.000123,2]
[326826687,1715461832158,-868.62,0.00012441,2]
[326826688,1715461832167,-210.0,0.00012503,2]
[326826689,1715461832176,-210.0,0.00012503,2]
[326826690,1715461832185,-4509.2444109,0.00012782,2]
[326826691,1715461832195,-550.41661248,0.00012782,2]
[326826692,1715461832205,-1398.32592027,0.00012783,2]